{"text_format":"1","workbook":"xlsx","n_sheets":4,"sheets":["入力用フォーム","(様式１)依頼書印刷用","データ表","Sheet1"],"not_rendered":{"charts":0,"images":1,"macros":1,"external_links":0,"defined_names":2,"comments":2,"pivot_tables":0},"unopened":[],"bounds":{"document_bytes":16777216,"sheet_cells":100000,"rows_first":2000,"rows_last":500,"rows_between":2000,"halvings":0,"cell_chars":16384,"cell_head_chars":4096},"cells_cut":0,"cells_raw":0,"read":"whole","date_system":"1900"}

{"sheet":"入力用フォーム","index":0,"n_rows":68,"n_cols":47,"rows_kept":68,"cut":false,"hidden":false,"merged":[[68,4,70,31],[37,9,37,11],[37,14,37,26],[22,13,22,21],[22,4,22,7],[43,9,43,16],[44,9,44,16],[42,17,42,22],[43,17,43,22],[44,17,44,22],[44,31,44,35],[31,9,31,11],[31,12,31,22],[27,9,27,11],[42,4,42,7],[43,31,43,35],[42,31,42,35],[20,25,20,32],[42,9,42,16],[33,23,33,24],[35,14,35,17],[40,27,40,30],[40,22,40,26],[35,9,35,12],[29,9,29,11],[29,20,29,22],[29,23,29,29],[33,4,33,7],[35,4,35,7],[37,4,37,7],[40,4,40,7],[44,26,44,30],[46,4,46,7],[48,4,48,7],[50,4,50,7],[15,9,15,15],[33,20,33,22],[27,20,27,21],[27,22,27,24],[50,11,50,16],[50,20,50,26],[50,18,50,19],[48,9,48,27],[25,10,25,11],[46,9,46,20],[27,12,27,19],[50,9,50,10],[33,9,33,17],[1,2,3,37],[54,33,55,34],[53,4,65,31],[11,2,11,3],[40,16,40,17],[40,9,40,11],[29,4,29,7],[27,4,27,7],[20,4,20,7],[25,14,25,15],[42,23,42,25],[43,23,43,25],[44,23,44,25],[42,26,42,30],[43,26,43,30],[29,12,29,18],[25,4,25,7],[17,4,17,7],[15,4,15,7],[9,8,10,32],[13,13,13,17],[17,25,17,32],[20,23,20,24],[13,9,13,11],[17,23,17,24],[17,9,17,21],[4,2,4,12],[4,14,4,24],[4,25,4,37],[13,46,17,51],[22,9,22,12],[20,9,20,21],[7,45,11,50],[13,4,13,7]]}
[]
[null,null,"この度は、沖縄県立総合教育センターによる「出前研修」へ申込みいただきありがとうございます。\n研修における主事派遣への（様式１）「出前研修」依頼書の提出について、\n 入力用フォームに必要事項を入力した後、担当：理科研修班あてにメールで本ファイルを添付・送信してください。\n（様式１）依頼書は別シートに自動的に反映されています。）\n　　"]
[]
[]
[null,null,"出前研修受付メールアドレス",null,null,null,null,null,null,null,null,null,null,null,"rika@edu-c.open.ed.jp"]
[]
[]
[null,null,"沖縄県立総合教育センター",null,null,null,null,null,null,null,null,null,null,null,null,null,null,null,null,null,null,null,null,null,null,null,null,null,null,null,null,null,null,null,null,null,null,null,null,null,null,null,null,null,null,"この入力フォームを印刷すれば、校内調整用の資料として活用できます"]
[]
[null,null,null,null,null,null,null,null,"（様式１）「出前研修」依頼書　入力用フォーム"]
[]
[]
[]
[null,null,null,null,"公 文 番 号",null,null,null,null,null,null,null,"第",null,null,null,null,null,"号",null,null,null,null,null,null,null,null,null,null,null,null,null,null,null,null,null,null,null,null,null,null,null,null,null,null,null,"様式１の入力内容を確認し、印刷します。"]
[]
[null,null,null,null,"取得日"]
[]
[null,null,null,{"$f":"IF(J18<>\"\",1,IF(J21<>\"\",2,\"\"))","v":""},"学　校　名",null,null,null,null,null,null,null,null,null,null,null,null,null,null,null,null,null,null,"校 長"]
[]
[]
[null,null,null,null,"研究会等名",null,null,null,null,null,null,null,null,null,null,null,null,null,null,null,null,null,null,"会 長"]
[]
[null,null,null,null,null,null,null,null,null,"事務局校名"]
[]
[]
[null,null,null,null,"校種・管轄地区",null,null,null,null,"校種",null,null,null,"地区"]
[]
[null,null,null,null,"担当者",null,null,null,null,"氏　名",null,null,null,null,null,null,null,null,null,null,"分掌"]
[]
[null,null,null,null,"連　絡　先",null,null,null,null,"電話",null,null,null,null,null,null,null,null,null,null,"FAX"]
[]
[null,null,null,null,null,null,null,null,null,"メール"]
[]
[null,null,null,null,"研修実施日",null,null,null,null,null,null,null,null,null,null,null,null,null,null,null,"実施回数",null,null,null,null,"回目"]
[]
[null,null,null,null,"時　　間",null,null,null,null,null,null,null,null,"～"]
[]
[null,null,null,null,"実 施 場 所"]
[]
[]
[null,null,null,null,"実施形態",null,null,null,null,null,null,null,null,"参加人数",null,null,null,null,"人",null,null,null,"※パッケージ型"]
[]
[null,null,null,null,"共同校",null,null,null,null,"学校名",null,null,null,null,null,null,null,"担当者名",null,null,null,null,null,"職名",null,null,"TEL",null,null,null,null,"FAX"]
[]
[]
[]
[null,null,null,null,"研修コード"]
[]
[null,null,null,null,"研　修　名"]
[]
[null,null,null,null,"担 当 主 事",null,null,null,null,"所属班",null,null,null,null,null,null,null,null,"主事名"]
[]
[null,null,null,null,"○依頼理由及び依頼内容を学校の課題を踏まえて具体的に記入してください"]
[]
[]
[]
[null,null,null,null,null,null,null,null,null,null,null,null,null,null,null,null,null,null,null,null,null,null,null,null,null,null,null,null,null,null,null,null,null,"別紙添付資料"]
[]
[]
[]
[]
[]
[]
[]
[]
[]
[]
[null,null,null,null,"その他　留意事項等"]

{"sheet":"(様式１)依頼書印刷用","index":1,"n_rows":101,"n_cols":68,"rows_kept":101,"cut":false,"hidden":false,"merged":[[51,4,54,12],[96,4,96,42],[99,4,99,42],[97,4,98,5],[97,41,98,42],[39,31,41,33],[39,34,41,41],[39,42,41,43],[39,21,41,22],[39,23,41,30],[39,17,42,20],[42,21,42,43],[55,13,56,27],[55,39,56,44],[61,30,64,68],[51,39,52,44],[53,56,54,68],[97,30,98,34],[97,36,98,40],[97,6,98,10],[97,12,98,16],[97,18,98,22],[67,13,93,68],[65,13,66,68],[36,49,38,50],[39,44,42,50],[47,49,48,50],[36,17,38,48],[35,64,38,68],[32,8,33,62],[35,4,42,12],[35,51,42,56],[35,57,42,63],[35,13,35,50],[36,13,42,16],[43,4,50,12],[39,64,42,68],[45,45,46,50],[43,13,46,38],[47,13,50,38],[49,49,50,50],[47,45,50,48],[47,51,50,54],[49,55,50,56],[49,67,50,68],[43,63,44,68],[43,51,44,56],[45,51,46,56],[51,13,52,27],[47,39,50,44],[45,39,46,44],[43,39,44,44],[59,13,60,29],[57,28,58,38],[59,30,60,68],[57,39,58,44],[47,55,48,56],[47,61,48,62],[47,67,48,68],[43,45,44,50],[57,56,58,68],[43,57,44,62],[45,57,46,62],[55,56,56,68],[51,56,52,68],[45,63,46,68],[47,57,50,60],[49,61,50,62],[47,63,50,66],[3,4,4,11],[26,10,28,56],[22,59,23,67],[6,6,8,7],[6,58,7,66],[6,67,7,68],[6,56,7,57],[6,50,7,55],[8,50,10,68],[11,6,13,33],[20,42,21,47],[20,50,21,67],[15,42,18,67],[100,4,105,12],[100,13,105,68],[51,28,52,38],[51,45,52,55],[94,4,95,42],[94,43,95,68],[96,43,99,68],[97,11,98,11],[97,17,98,17],[97,23,98,23],[97,29,98,29],[97,35,98,35],[97,24,98,28],[55,4,58,12],[55,28,56,38],[55,45,56,55],[57,45,58,55],[53,45,54,55],[53,13,54,27],[53,39,54,44],[53,28,54,38],[59,4,93,12],[57,13,58,27],[61,13,64,29]]}
[]
[]
[]
[null,null,null,null,"（様式１）"]
[]
[]
[null,null,null,null,null,null,"受番",null,null,null,null,null,null,null,null,null,null,null,null,null,null,null,null,null,null,null,null,null,null,null,null,null,null,null,null,null,null,null,null,null,null,null,null,null,null,null,null,null,null,null,{"$f":"入力用フォーム!J14","v":0},null,null,null,null,null,"第",null,{"$f":"入力用フォーム!N14","v":0},null,null,null,null,null,null,null,null,"号"]
[]
[null,null,null,null,null,null,null,null,null,null,null,null,null,null,null,null,null,null,null,null,null,null,null,null,null,null,null,null,null,null,null,null,null,null,null,null,null,null,null,null,null,null,null,null,null,null,null,null,null,null,{"$f":"入力用フォーム!J16","v":"00:00:00"}]
[]
[]
[null,null,null,null,null,null,"沖縄県立総合教育センター所長　殿"]
[]
[]
[]
[null,null,null,null,null,null,null,null,null,null,null,null,null,null,null,null,null,null,null,null,null,null,null,null,null,null,null,null,null,null,null,null,null,null,null,null,null,null,null,null,null,null,{"$f":"IF(入力用フォーム!D18=1,入力用フォーム!J18,IF(入力用フォーム!D18=2,入力用フォーム!J21,\"\"))","v":""}]
[]
[]
[]
[]
[null,null,null,null,null,null,null,null,null,null,null,null,null,null,null,null,null,null,null,null,null,null,null,null,null,null,null,null,null,null,null,null,null,null,null,null,null,null,null,null,null,null,{"$f":"IF(入力用フォーム!D18=1,入力用フォーム!X18,IF(入力用フォーム!D18=2,入力用フォーム!X21,\"\"))","v":""},null,null,null,null,null,null,null,{"$f":"IF(入力用フォーム!D18=1,入力用フォーム!Z18,IF(入力用フォーム!D18=2,入力用フォーム!Z21,\"\"))","v":""}]
[]
[null,null,null,null,null,null,null,null,null,null,null,null,null,null,null,null,null,null,null,null,null,null,null,null,null,null,null,null,null,null,null,null,null,null,null,null,null,null,null,null,null,null,null,null,null,null,null,null,null,null,null,null,null,null,null,null,null,null,null,"（公印省略）"]
[]
[]
[]
[null,null,null,null,null,null,null,null,null,null,"令和２年度　「出前研修」依頼書"]
[]
[]
[]
[]
[]
[null,null,null,null,null,null,null,null,"下記の通り、県立総合教育センターによる「出前研修」を依頼します。"]
[]
[]
[null,null,null,null,"日　時",null,null,null,null,null,null,null,null,null,null,null,null,null,null,null,null,null,null,null,null,null,null,null,null,null,null,null,null,null,null,null,null,null,null,null,null,null,null,null,null,null,null,null,null,null,null,"今年度\n実施回数",null,null,null,null,null,{"$f":"入力用フォーム!X34","v":0}]
[null,null,null,null,null,null,null,null,null,null,null,null,null,null,null,null,null,{"$f":"入力用フォーム!J34","v":"00:00:00"}]
[]
[]
[null,null,null,null,null,null,null,null,null,null,null,null,null,null,null,null,null,null,null,null,null,"[",null,{"$f":"入力用フォーム!J36","v":0},null,null,null,null,null,null,null,"－",null,null,{"$f":"入力用フォーム!O36","v":"00:00:00"},null,null,null,null,null,null,null,"]",null,null,null,null,null,null,null,null,null,null,null,null,null,null,null,null,null,null,null,null,null,"回目"]
[]
[]
[]
[null,null,null,null,"実施場所",null,null,null,null,null,null,null,null,{"$f":"入力用フォーム!J38","v":0},null,null,null,null,null,null,null,null,null,null,null,null,null,null,null,null,null,null,null,null,null,null,null,null,null,"実施形態",null,null,null,null,null,"単独",null,null,null,null,null,"共同",null,null,null,null,null,"研究会",null,null,null,null,null,"その他"]
[]
[null,null,null,null,null,null,null,null,null,null,null,null,null,null,null,null,null,null,null,null,null,null,null,null,null,null,null,null,null,null,null,null,null,null,null,null,null,null,null,"○印",null,null,null,null,null,{"$f":"IF(入力用フォーム!$J$41='(様式１)依頼書印刷用'!AT44,\"○\",\"\")","v":""},null,null,null,null,null,{"$f":"IF(入力用フォーム!$J$41='(様式１)依頼書印刷用'!AZ44,\"○\",\"\")","v":""},null,null,null,null,null,{"$f":"IF(入力用フォーム!$J$41='(様式１)依頼書印刷用'!BF44,\"○\",\"\")","v":""},null,null,null,null,null,{"$f":"IF(入力用フォーム!$J$41='(様式１)依頼書印刷用'!BL44,\"○\",\"\")","v":""}]
[]
[null,null,null,null,null,null,null,null,null,null,null,null,null,{"$f":"入力用フォーム!O38","v":0},null,null,null,null,null,null,null,null,null,null,null,null,null,null,null,null,null,null,null,null,null,null,null,null,null,"参加人数",null,null,null,null,null,{"$f":"IF(AT46=\"○\",入力用フォーム!Q41,\"\")","v":""},null,null,null,null,null,{"$f":"IF(AZ46=\"○\",入力用フォーム!Q41,\"\")","v":""},null,null,null,null,null,{"$f":"IF(BF46=\"○\",入力用フォーム!Q41,\"\")","v":""},null,null,null,null,null,{"$f":"IF(BL46=\"○\",入力用フォーム!Q41,\"\")","v":""}]
[]
[null,null,null,null,null,null,null,null,null,null,null,null,null,null,null,null,null,null,null,null,null,null,null,null,null,null,null,null,null,null,null,null,null,null,null,null,null,null,null,null,null,null,null,null,null,null,null,null,null,"人",null,null,null,null,null,"人",null,null,null,null,null,"人",null,null,null,null,null,"人"]
[]
[null,null,null,null,"連絡先",null,null,null,null,null,null,null,null,"学校名",null,null,null,null,null,null,null,null,null,null,null,null,null,null,"担当者",null,null,null,null,null,null,null,null,null,null,"職名",null,null,null,null,null,"TEL",null,null,null,null,null,null,null,null,null,null,"FAX"]
[]
[null,null,null,null,null,null,null,null,null,null,null,null,null,{"$f":"IF(入力用フォーム!D18=1,入力用フォーム!J18,IF(入力用フォーム!D18=2,入力用フォーム!J23,\"\"))","v":""},null,null,null,null,null,null,null,null,null,null,null,null,null,null,{"$f":"入力用フォーム!M28","v":0},null,null,null,null,null,null,null,null,null,null,{"$f":"入力用フォーム!W28","v":0},null,null,null,null,null,{"$f":"入力用フォーム!M30","v":0},null,null,null,null,null,null,null,null,null,null,{"$f":"入力用フォーム!X30","v":0}]
[]
[null,null,null,null,"共同校",null,null,null,null,null,null,null,null,{"$f":"入力用フォーム!J44","v":0},null,null,null,null,null,null,null,null,null,null,null,null,null,null,{"$f":"入力用フォーム!R44","v":0},null,null,null,null,null,null,null,null,null,null,{"$f":"入力用フォーム!X44","v":0},null,null,null,null,null,{"$f":"入力用フォーム!AA44","v":0},null,null,null,null,null,null,null,null,null,null,{"$f":"入力用フォーム!AF44","v":0}]
[]
[null,null,null,null,null,null,null,null,null,null,null,null,null,{"$f":"入力用フォーム!J45","v":0},null,null,null,null,null,null,null,null,null,null,null,null,null,null,{"$f":"入力用フォーム!R45","v":0},null,null,null,null,null,null,null,null,null,null,{"$f":"入力用フォーム!X45","v":0},null,null,null,null,null,{"$f":"入力用フォーム!AA45","v":0},null,null,null,null,null,null,null,null,null,null,{"$f":"入力用フォーム!AF45","v":0}]
[]
[null,null,null,null,"研修計画",null,null,null,null,null,null,null,null,"研修コード",null,null,null,null,null,null,null,null,null,null,null,null,null,null,null,null,"研修番号・研修内容"]
[]
[null,null,null,null,null,null,null,null,null,null,null,null,null,{"$f":"LEFT(入力用フォーム!J47,5)","v":""},null,null,null,null,null,null,null,null,null,null,null,null,null,null,null,null,{"$f":"入力用フォーム!J49","v":0}]
[]
[]
[]
[null,null,null,null,null,null,null,null,null,null,null,null,null,"○依頼理由及び依頼内容を学校の課題を踏まえて具体的に記入してください"]
[]
[null,null,null,null,null,null,null,null,null,null,null,null,null,{"$f":"CONCATENATE(入力用フォーム!E54,\"         \",IF(入力用フォーム!AH55=\"\",\"\",\"   ※別紙添付資料あり\"))","v":"         "}]
[]
[]
[]
[]
[]
[]
[]
[]
[]
[]
[]
[]
[]
[]
[]
[]
[]
[]
[]
[]
[]
[]
[]
[]
[]
[]
[null,null,null,null,"研修実施主事所属班",null,null,null,null,null,null,null,null,null,null,null,null,null,null,null,null,null,null,null,null,null,null,null,null,null,null,null,null,null,null,null,null,null,null,null,null,null,null,"研修実施主事名"]
[]
[null,null,null,null,null,null,null,null,null,null,null,null,null,null,null,null,null,null,null,null,null,null,null,null,null,null,null,null,null,null,null,null,null,null,null,null,null,null,null,null,null,null,null,{"$f":"CONCATENATE(入力用フォーム!U51,\" 主事\")","v":" 主事"}]
[null,null,null,null,null,null,"教科",null,null,null,null,"・","経営",null,null,null,null,"・","理科",null,null,null,null,"・","特支",null,null,null,null,"・","ＩＴ",null,null,null,null,"・","産技"]
[]
[]
[null,null,null,null,"備　考",null,null,null,null,null,null,null,null,{"$f":"IF(入力用フォーム!AB41=\"\",入力用フォーム!E69,CONCATENATE(入力用フォーム!AB41,\"     \",入力用フォーム!E69))","v":0}]

{"sheet":"データ表","index":2,"n_rows":3,"n_cols":37,"rows_kept":3,"cut":false,"hidden":true,"merged":[[1,15,1,16]]}
[]
[null,"ID","学校名","代表者名","校種","管轄","研修担当者","分掌","電話","ＦＡＸ","メール","実施日","実施時間","形態","人数","場所",null,"回数","研修希望班","実施主事","研修分野","研修内容","依頼理由","備考","パッケージ","公文頭","公文番号","共同校１","担当者１","職名１","電話１","FAX1","共同校１","担当者１","職名１","電話１","FAX1"]
[null,null,{"$f":"'(様式１)依頼書印刷用'!AQ16","v":""},{"$f":"'(様式１)依頼書印刷用'!AY21","v":""},{"$f":"入力用フォーム!K26","v":0},{"$f":"入力用フォーム!O26","v":0},{"$f":"入力用フォーム!M28","v":0},{"$f":"入力用フォーム!W28","v":0},{"$f":"入力用フォーム!M30","v":0},{"$f":"入力用フォーム!X30","v":0},{"$f":"入力用フォーム!M32","v":0},{"$f":"入力用フォーム!J34","v":"00:00:00"},{"$f":"CONCATENATE(入力用フォーム!J36,\"-\",入力用フォーム!O36)","v":"-"},{"$f":"入力用フォーム!J41","v":0},{"$f":"入力用フォーム!Q41","v":0},{"$f":"入力用フォーム!J38","v":0},{"$f":"入力用フォーム!O38","v":0},{"$f":"入力用フォーム!X34","v":0},{"$f":"入力用フォーム!L51","v":0},{"$f":"入力用フォーム!U51","v":0},{"$f":"入力用フォーム!J47","v":0},{"$f":"入力用フォーム!J49","v":0},{"$f":"入力用フォーム!E54","v":0},{"$f":"入力用フォーム!E69","v":0},{"$f":"入力用フォーム!AB41","v":0},{"$f":"入力用フォーム!J14","v":0},{"$f":"入力用フォーム!N14","v":0},{"$f":"入力用フォーム!J44","v":0},{"$f":"入力用フォーム!R44","v":0},{"$f":"入力用フォーム!X44","v":0},{"$f":"入力用フォーム!AA44","v":0},{"$f":"入力用フォーム!AF44","v":0},{"$f":"入力用フォーム!J45","v":0},{"$f":"入力用フォーム!R45","v":0},{"$f":"入力用フォーム!X45","v":0},{"$f":"入力用フォーム!AA45","v":0},{"$f":"入力用フォーム!AF45","v":0}]

{"sheet":"Sheet1","index":3,"n_rows":85,"n_cols":12,"rows_kept":85,"cut":false,"hidden":true,"merged":[]}
[]
[]
[]
[null,"校種","地区",null,"形態",null,null,"研修コード",null,null,null,"研修名"]
[null,null,null,null,"単独",null,null,"A-101「教科・授業づくり」"]
[null,"認こ","国頭",null,"共同",null,null,"B-201「総合的な学習の時間」"]
[null,"幼","中頭",null,"研究会",null,null,"B-202「特別活動」"]
[null,"小","那覇",null,"パッケージ",null,null,"B-203「特別の教科　”道徳”」"]
[null,"中","島尻",null,"その他",null,null,"C-301「学級づくり」"]
[null,"小中","宮古",null,null,null,null,"C-302「生徒指導・教育相談」"]
[null,"高","八重山",null,"研修班",null,null,"D-401「ICT教育」"]
[null,"特支","県立",null,"教科研修班",null,null,"E-501「特別支援教育」"]
[null,"研究会","他",null,"教育経営研修班",null,null,"F-601「高校全教科・新学習指導要領」"]
[null,"PTA",null,null,"理科研修班",null,null,"F-602「高校学校教育全般」"]
[null,"他",null,null,"IT教育班",null,null,"F-603「高校研究指定支援」"]
[null,null,null,null,"特別支援教育班"]
[null,null,null,null,"産業教育班"]
[]
[null,"チェック"]
[null,null,null,"パッケージ①",null,null,"A-101「教科・授業づくり」"]
[null,"✓",null,"パッケージ②",null,null," ①身につけさせたい資質・能力を育む授業づくり"]
[null,null,null,"パッケージ③",null,null," ②ノートづくり"]
[null,null,null,null,null,null," ③新学習指導要領に向けた授業づくり"]
[null,null,null,null,null,null," ④家庭学習の取り組み"]
[null,"校内",null,null,null,null," ⑤実践事例や実技研修、教材等の紹介と指導助言"]
[null,"校外",null,null,null,null," ⑥評価"]
[]
[null,null,null,null,null,null,"B-201「総合的な学習の時間」"]
[null,null,null,null,null,null," ①総合的な学習の時間の展開・指導計画・指導助言等"]
[null,null,null,null,null,null," ②農工商の技能を活用したものづくりや職業観の育成"]
[]
[null,null,null,null,null,null,"B-202「特別活動」"]
[null,null,null,null,null,null," ①学級経営"]
[null,null,null,null,null,null," ②学級づくり"]
[null,null,null,null,null,null," ③児童会・生徒会"]
[null,null,null,null,null,null," ④構成的エンカウンター等"]
[]
[null,null,null,null,null,null,"B-203「特別の教科道徳」"]
[null,null,null,null,null,null," ①新学習指導要領を踏まえた理論研修"]
[null,null,null,null,null,null," ②学校の課題を踏まえたワークショップ、演習、協議等の実践研修"]
[]
[null,null,null,null,null,null,"C-301「学級づくり」"]
[null,null,null,null,null,null," ①学校内人材育成"]
[null,null,null,null,null,null," ②学校組織マネジメント"]
[null,null,null,null,null,null," ③環境教育"]
[null,null,null,null,null,null," ④キャリア教育"]
[null,null,null,null,null,null," ⑤幼児教育"]
[null,null,null,null,null,null," ⑥健康教育"]
[null,null,null,null,null,null," ⑦食教育"]
[]
[null,null,null,null,null,null,"C-302「生徒指導・教育相談」"]
[null,null,null,null,null,null," ①課題を抱える生徒への支援の在り方と校内体制"]
[null,null,null,null,null,null," ②予防的・開発的教育相談"]
[]
[null,null,null,null,null,null,"Ｄ-401「ＩＣＴ教育」"]
[null,null,null,null,null,null," ①タブレット端末、ＩＣＴ機器活用等のＩＣＴ教育実践研修"]
[null,null,null,null,null,null," ②情報モラル、情報セキュリティー"]
[null,null,null,null,null,null," ③小学校プログラミング教育"]
[]
[null,null,null,null,null,null,"Ｅ-501「特別支援教育」"]
[null,null,null,null,null,null," ①障害特性（発達障害を含む）の理解、支援の在り方"]
[null,null,null,null,null,null," ②教育課程"]
[null,null,null,null,null,null," ③就学支援"]
[null,null,null,null,null,null," ④交流および共同学習"]
[null,null,null,null,null,null," ⑤インクルーシブ教育システムの構築"]
[null,null,null,null,null,null," ⑥特別支援教育実践"]
[null,null,null,null,null,null," ⑦特別支援学校教育支援システム"]
[]
[null,null,null,null,null,null,"F-601「高校全教科新学習指導要領」"]
[null,null,null,null,null,null," ①新学習指導要領に向けた授業づくり"]
[null,null,null,null,null,null," ②実践事例や実技研修、教材等の紹介と指導助言等"]
[]
[null,null,null,null,null,null,"F-602「高校学校教育全般」"]
[null,null,null,null,null,null," ①教科会・学年会・学科会等の活性化に向けた学校組織全体への支援"]
[null,null,null,null,null,null," ②カリキュラム・マネジメント"]
[null,null,null,null,null,null," ③キャリア教育"]
[null,null,null,null,null,null," ④学校内人材育成（ＯＪＴ）"]
[null,null,null,null,null,null," ⑤学校組織マネジメント"]
[null,null,null,null,null,null," ⑥食教育"]
[null,null,null,null,null,null," ⑦特色ある学校づくり"]
[null,null,null,null,null,null," ⑧生徒指導・教育相談"]
[null,null,null,null,null,null," ⑨健康教育"]
[null,null,null,null,null,null," ⑩office365活用研修等、ICT教育"]
[null,null,null,null,null,null," ⑪環境教育"]
[null,null,null,null,null,null," ⑫総合的な探究の時間"]